Workbook

Sheet 員工資訊
A2: 員工資訊
A3: 公司名稱
A4: 員工編號 | B4: 員工姓名 | C4: 時薪 | D4: 課稅狀況 | E4: 免稅扣除額 | F4: 所得稅 | G4: 縣市課稅 (依據扣除額) | H4: 社會安全稅 | I4: 健保費 | J4: 扣繳總額 | K4: 保險扣除額 | L4: 其他定期扣除額 | M4: 定期扣除總額 (不包括課稅)
A5: 1 | B5: 劉小龍 | C5: $100.00 | D5: 1 | E5: 4 | F5: 2.30% | G5: 28.00% | H5: 6.30% | I5: 1.45% | J5: =Table1[所得稅]+Table1[縣市課稅 (依據扣除額)]+Table1[社會安全稅]+Table1[健保費] -> 38.05% | K5: $200.00 | L5: $400.00 | M5: =Table1[保險扣除額]+Table1[其他定期扣除額] -> $600.00
A6: 2 | B6: 徐文彬 | C6: $130.00 | D6: 1 | E6: 4 | F6: 2.30% | G6: 28.00% | H6: 6.30% | I6: 1.45% | J6: =Table1[所得稅]+Table1[縣市課稅 (依據扣除額)]+Table1[社會安全稅]+Table1[健保費] -> 38.05% | K6: $200.00 | L6: $520.00 | M6: =Table1[保險扣除額]+Table1[其他定期扣除額] -> $720.00
A7: 3 | B7: 林麗音 | C7: $100.00 | D7: 1 | E7: 4 | F7: 2.30% | G7: 28.00% | H7: 6.30% | I7: 1.45% | J7: =Table1[所得稅]+Table1[縣市課稅 (依據扣除額)]+Table1[社會安全稅]+Table1[健保費] -> 38.05% | K7: $200.00 | L7: 0 | M7: =Table1[保險扣除額]+Table1[其他定期扣除額] -> $200.00

Sheet 薪資單計算機
A1: 薪資單計算機
J2: 結束日期： | K2: 3911300.00%
A3: =員工資訊!$A$3 -> 公司名稱
A4: 員工編號 | B4: 員工姓名 | C4: 正常工作時數 | D4: 假期時數 | E4: 病假時數 | F4: 加班時數 | G4: 加班工資率 | H4: 稅前工資 | I4: 課稅與扣除額 | J4: 其他扣除額 | K4: 稅後工資
A5: 1 | B5: =VLOOKUP(A5,Table1[],2,FALSE) -> 劉小龍 | C5: 50.00 | D5: 5.00 | E5: 1.00 | H5: =(VLOOKUP(A5,Table1[],3,FALSE)*(Table2[正常工作時數]+Table2[假期時數]+Table2[病假時數])+Table2[加班時數]*Table2[加班工資率]) -> $5,600.00 | I5: =VLOOKUP(A5,Table1[],10,FALSE)*Table2[稅前工資]+Table1[定期扣除總額 (不包括課稅)] -> $2,730.80 | J5: $20.00 | K5: =Table2[稅前工資]-Table2[[課稅與扣除額 ]]-Table2[其他扣除額] -> $2,849.20
A6: 2 | B6: =VLOOKUP(A6,Table1[],2,FALSE) -> 徐文彬 | C6: 40.00 | D6: 0.00 | E6: 0.00 | H6: =(VLOOKUP(A6,Table1[],3,FALSE)*(Table2[正常工作時數]+Table2[假期時數]+Table2[病假時數])+Table2[加班時數]*Table2[加班工資率]) -> $5,200.00 | I6: =VLOOKUP(A6,Table1[],10,FALSE)*Table2[稅前工資]+Table1[定期扣除總額 (不包括課稅)] -> $2,698.60 | J6: $52.00 | K6: =Table2[稅前工資]-Table2[[課稅與扣除額 ]]-Table2[其他扣除額] -> $2,449.40
A7: 3 | B7: =VLOOKUP(A7,Table1[],2,FALSE) -> 林麗音 | C7: 52.00 | D7: 0.00 | E7: 0.00 | F7: 2.00 | G7: $20.00 | H7: =(VLOOKUP(A7,Table1[],3,FALSE)*(Table2[正常工作時數]+Table2[假期時數]+Table2[病假時數])+Table2[加班時數]*Table2[加班工資率]) -> $5,240.00 | I7: =VLOOKUP(A7,Table1[],10,FALSE)*Table2[稅前工資]+Table1[定期扣除總額 (不包括課稅)] -> $2,193.82 | J7: $20.00 | K7: =Table2[稅前工資]-Table2[[課稅與扣除額 ]]-Table2[其他扣除額] -> $3,026.18

Sheet 個別薪資單
C2: =(員工資訊!$A$3) -> 公司名稱
C3: 期間： | D3: =薪資單計算機!$K$2 -> 3911300.00% | E3: 員工姓名 | F3: =IFERROR(VLOOKUP(H3,Table1[],2),"") -> 劉小龍 | G3: 員工編號 | H3: 1
C5: 課稅狀況 | D5: =IFERROR(VLOOKUP(H3,Table1[],4),"") -> 1 | E5: 免稅扣除額 | F5: =IFERROR(VLOOKUP(H3,Table1[],5,FALSE),"") -> 4 | G5: 工作時數 | H5: =IFERROR(VLOOKUP(H3,Table2[],3,FALSE),"") -> 50
C6: 時薪 | D6: =IFERROR(VLOOKUP(H3,Table1[],3,FALSE),"") -> $100.00 | E6: 加班工資率 | F6: =IFERROR(VLOOKUP(H3,Table2[],7,FALSE),"") -> 0 | G6: 病假時數 | H6: =IFERROR(VLOOKUP(H3,Table2[],5,FALSE),"") -> 1
C7: 社會安全稅 | D7: =IFERROR(IFERROR(VLOOKUP(H3,Table1[],8,FALSE),"")*H9,"") -> $352.80 | E7: 縣市課稅 | F7: =IFERROR(IFERROR(VLOOKUP(H3,Table1[],7,FALSE),"")*H9,"") -> $1,568.00 | G7: 假期時數 | H7: =IFERROR(VLOOKUP(H3,Table2[],4,FALSE),"") -> 5
C8: 健保費 | D8: =IFERROR(IFERROR(VLOOKUP(H3,Table1[],9,FALSE),"")*H9,"") -> $81.20 | E8: 所得稅 | F8: =IFERROR(IFERROR(VLOOKUP(H3,Table1[],6,FALSE),"")*H9,"") -> $128.80 | G8: 加班時數 | H8: =IFERROR(VLOOKUP(H3,Table2[],6,FALSE),"") -> 0
C9: 保險扣除額 | D9: =IFERROR(VLOOKUP(H3,Table1[],11,FALSE),"") -> $200.00 | E9: 其他定期扣除額 | F9: =IFERROR(VLOOKUP(H3,Table1[],12,FALSE),"") -> $400.00 | G9: 稅前工資 | H9: =IFERROR(VLOOKUP(H3,Table2[],8,FALSE),"") -> $5,600.00
C10: 課稅與定期扣除總額 | D10: =IFERROR(SUM(F7:F9)+SUM(D7:D9),"") -> $2,730.80 | E10: 其他扣除額 | F10: =IFERROR(VLOOKUP(H3,Table2[],10,FALSE),"") -> $20.00 | G10: 課稅與扣除總額 | H10: =IFERROR(IFERROR(VLOOKUP(H3,Table2[],9,FALSE),"")+F10,"") -> $2,750.80
G11: 稅後工資 | H11: =IFERROR(VLOOKUP(H3,Table2[],11,FALSE),"") -> $2,849.20
C14: =(員工資訊!$A$3) -> 公司名稱
C15: 期間： | D15: =薪資單計算機!$K$2 -> 3911300.00% | E15: 員工姓名 | F15: =IFERROR(VLOOKUP(H15,Table1[],2),"") -> 徐文彬 | G15: 員工編號 | H15: 2
C17: 課稅狀況 | D17: =IFERROR(VLOOKUP(H15,Table1[],4),"") -> 1 | E17: 免稅扣除額 | F17: =IFERROR(VLOOKUP(H15,Table1[],5,FALSE),"") -> 4 | G17: 工作時數 | H17: =IFERROR(VLOOKUP(H15,Table2[],3,FALSE),"") -> 40
C18: 時薪 | D18: =IFERROR(VLOOKUP(H15,Table1[],3,FALSE),"") -> $130.00 | E18: 加班工資率 | F18: =IFERROR(VLOOKUP(H15,Table2[],7,FALSE),"") -> 0 | G18: 病假時數 | H18: =IFERROR(VLOOKUP(H15,Table2[],5,FALSE),"") -> 0
C19: 社會安全稅 | D19: =IFERROR(IFERROR(VLOOKUP(H15,Table1[],8,FALSE),"")*H21,"") -> $327.60 | E19: 縣市課稅 | F19: =IFERROR(IFERROR(VLOOKUP(H15,Table1[],7,FALSE),"")*H21,"") -> $1,456.00 | G19: 假期時數 | H19: =IFERROR(VLOOKUP(H15,Table2[],4,FALSE),"") -> 0
C20: 健保費 | D20: =IFERROR(IFERROR(VLOOKUP(H15,Table1[],9,FALSE),"")*H21,"") -> $75.40 | E20: 所得稅 | F20: =IFERROR(IFERROR(VLOOKUP(H15,Table1[],6,FALSE),"")*H21,"") -> $119.60 | G20: 加班時數 | H20: =IFERROR(VLOOKUP(H15,Table2[],6,FALSE),"") -> 0
C21: 保險扣除額 | D21: =IFERROR(VLOOKUP(H15,Table1[],11,FALSE),"") -> $200.00 | E21: 其他定期扣除額 | F21: =IFERROR(VLOOKUP(H15,Table1[],12,FALSE),"") -> $520.00 | G21: 稅前工資 | H21: =IFERROR(VLOOKUP(H15,Table2[],8,FALSE),"") -> $5,200.00
C22: 課稅與定期扣除總額 | D22: =IFERROR(SUM(F19:F21)+SUM(D19:D21),"") -> $2,698.60 | E22: 其他扣除額 | F22: =IFERROR(VLOOKUP(H15,Table2[],10,FALSE),"") -> $52.00 | G22: 課稅與扣除總額 | H22: =IFERROR(IFERROR(VLOOKUP(H15,Table2[],9,FALSE),"")+F22,"") -> $2,750.60
G23: 稅後工資 | H23: =IFERROR(VLOOKUP(H15,Table2[],11,FALSE),"") -> $2,449.40
C26: =(員工資訊!$A$3) -> 公司名稱
C27: 期間： | D27: =薪資單計算機!$K$2 -> 3911300.00% | E27: 員工姓名 | F27: =IFERROR(VLOOKUP(H27,Table1[],2),"") -> 林麗音 | G27: 員工編號 | H27: 3
C29: 課稅狀況 | D29: =IFERROR(VLOOKUP(H27,Table1[],4),"") -> 1 | E29: 免稅扣除額 | F29: =IFERROR(VLOOKUP(H27,Table1[],5,FALSE),"") -> 4 | G29: 工作時數 | H29: =IFERROR(VLOOKUP(H27,Table2[],3,FALSE),"") -> 52
C30: 時薪 | D30: =IFERROR(VLOOKUP(H27,Table1[],3,FALSE),"") -> $100.00 | E30: 加班工資率 | F30: =IFERROR(VLOOKUP(H27,Table2[],7,FALSE),"") -> $20.00 | G30: 病假時數 | H30: =IFERROR(VLOOKUP(H27,Table2[],5,FALSE),"") -> 0
C31: 社會安全稅 | D31: =IFERROR(IFERROR(VLOOKUP(H27,Table1[],8,FALSE),"")*H33,"") -> $330.12 | E31: 縣市課稅 | F31: =IFERROR(IFERROR(VLOOKUP(H27,Table1[],7,FALSE),"")*H33,"") -> $1,467.20 | G31: 假期時數 | H31: =IFERROR(VLOOKUP(H27,Table2[],4,FALSE),"") -> 0
C32: 健保費 | D32: =IFERROR(IFERROR(VLOOKUP(H27,Table1[],9,FALSE),"")*H33,"") -> $75.98 | E32: 所得稅 | F32: =IFERROR(IFERROR(VLOOKUP(H27,Table1[],6,FALSE),"")*H33,"") -> $120.52 | G32: 加班時數 | H32: =IFERROR(VLOOKUP(H27,Table2[],6,FALSE),"") -> 2
C33: 保險扣除額 | D33: =IFERROR(VLOOKUP(H27,Table1[],11,FALSE),"") -> $200.00 | E33: 其他定期扣除額 | F33: =IFERROR(VLOOKUP(H27,Table1[],12,FALSE),"") -> 0 | G33: 稅前工資 | H33: =IFERROR(VLOOKUP(H27,Table2[],8,FALSE),"") -> $5,240.00
C34: 課稅與定期扣除總額 | D34: =IFERROR(SUM(F31:F33)+SUM(D31:D33),"") -> $2,193.82 | E34: 其他扣除額 | F34: =IFERROR(VLOOKUP(H27,Table2[],10,FALSE),"") -> $20.00 | G34: 課稅與扣除總額 | H34: =IFERROR(IFERROR(VLOOKUP(H27,Table2[],9,FALSE),"")+F34,"") -> $2,213.82
G35: 稅後工資 | H35: =IFERROR(VLOOKUP(H27,Table2[],11,FALSE),"") -> $3,026.18
C39: =(員工資訊!$A$3) -> 公司名稱
C40: 期間： | D40: =薪資單計算機!$K$2 -> 3911300.00% | E40: 員工姓名 | F40: =IFERROR(VLOOKUP(H40,Table1[],2),"") ->  | G40: 員工編號
C42: 課稅狀況 | D42: =IFERROR(VLOOKUP(H40,Table1[],4),"") ->  | E42: 免稅扣除額 | F42: =IFERROR(VLOOKUP(H40,Table1[],5,FALSE),"") ->  | G42: 工作時數 | H42: =IFERROR(VLOOKUP(H40,Table2[],3,FALSE),"") -> 
C43: 時薪 | D43: =IFERROR(VLOOKUP(H40,Table1[],3,FALSE),"") ->  | E43: 加班工資率 | F43: =IFERROR(VLOOKUP(H40,Table2[],7,FALSE),"") ->  | G43: 病假時數 | H43: =IFERROR(VLOOKUP(H40,Table2[],5,FALSE),"") -> 
C44: 社會安全稅 | D44: =IFERROR(IFERROR(VLOOKUP(H40,Table1[],8,FALSE),"")*H46,"") ->  | E44: 縣市課稅 | F44: =IFERROR(IFERROR(VLOOKUP(H40,Table1[],7,FALSE),"")*H46,"") ->  | G44: 假期時數 | H44: =IFERROR(VLOOKUP(H40,Table2[],4,FALSE),"") -> 
C45: 健保費 | D45: =IFERROR(IFERROR(VLOOKUP(H40,Table1[],9,FALSE),"")*H46,"") ->  | E45: 所得稅 | F45: =IFERROR(IFERROR(VLOOKUP(H40,Table1[],6,FALSE),"")*H46,"") ->  | G45: 加班時數 | H45: =IFERROR(VLOOKUP(H40,Table2[],6,FALSE),"") -> 
C46: 保險扣除額 | D46: =IFERROR(VLOOKUP(H40,Table1[],11,FALSE),"") ->  | E46: 其他定期扣除額 | F46: =IFERROR(VLOOKUP(H40,Table1[],12,FALSE),"") ->  | G46: 稅前工資 | H46: =IFERROR(VLOOKUP(H40,Table2[],8,FALSE),"") -> 
C47: 課稅與定期扣除總額 | D47: =IFERROR(SUM(F44:F46)+SUM(D44:D46),"") -> 0 | E47: 其他扣除額 | F47: =IFERROR(VLOOKUP(H40,Table2[],10,FALSE),"") ->  | G47: 課稅與扣除總額 | H47: =IFERROR(IFERROR(VLOOKUP(H40,Table2[],9,FALSE),"")+F47,"") -> 
G48: 稅後工資 | H48: =IFERROR(VLOOKUP(H40,Table2[],11,FALSE),"") -> 
